Cogmind - Beta 15 @@@ ROGUE MODE // 2025.06.03 @ 15:17:29 Player: Tibo Result: Destroyed by S-10 Pest with Light Assault Rifle Performance ------------- Evolutions (0) 0 Regions Visited (2) 400 Robots Destroyed (5) 25 Value Destroyed (28) 28 Prototype IDs (0) 0 Alien Tech Used (0) 0 Bonus (0) 0 TOTAL SCORE: 453 Bonus ------- None Cogmind --------- Core Integrity 0/250 Matter 300/300 Energy 100/100 System Corruption 0% Temperature Cool (0) Movement Core (100) Ox1 Location -10/Mines Parts ------- > --- POWER (1) -------- (None) > --- PROPULSION (2) --- (None) > --- UTILITY (2) ------ Small Storage Unit > --- WEAPON (2) ------- (None) > --- INVENTORY (8) ---- Light Ion Engine Light Ion Engine Light Ion Engine Light Treads Light Treads Seismic Detector Medium Laser Mining Laser Peak State ------------ > --- POWER ------------ Light Ion Engine > --- PROPULSION ------- Aluminum Leg Aluminum Leg > --- UTILITY ---------- Small Storage Unit Seismic Detector > --- WEAPON ----------- EM Pulse Gun Medium Laser > --- INVENTORY -------- Light Ion Engine Light Ion Engine Light Treads Light Treads Medium Laser [Rating: 7] Favorites ----------- Power Light Ion Engine Engine Light Ion Engine Propulsion Aluminum Leg Leg Aluminum Leg Utility Small Storage Unit Device Seismic Detector Storage Small Storage Unit Weapon EM Pulse Gun Energy Gun EM Pulse Gun Special Weapon Mining Laser Build | -11 -10 -10 ------- Run | Yrd Mat Min Slots Evolved . | . . . Power . | . . . Propulsion . | . . . Utility . | . . . Weapon . | . . . Parts Attached 10 | 9 1 . Power 2 | 2 . . Engine 2 | 2 . . Core . | . . . Reactor . | . . . Propulsion 2 | 2 . . Treads . | . . . Leg 2 | 2 . . Wheel . | . . . Hover . | . . . Flight . | . . . Utility 2 | 2 . . Device 1 | 1 . . Storage 1 | 1 . . Processor . | . . . Hackware . | . . . Protection . | . . . Artifact . | . . . Weapon 4 | 3 1 . Energy Gun 3 | 3 . . Energy Cannon . | . . . Ballistic Gun . | . . . Ballistic Cannon . | . . . Launcher . | . . . Special Weapon 1 | . 1 . Impact Weapon . | . . . Slashing Weapon . | . . . Piercing Weapon . | . . . Special Melee Weapon . | . . . Unidentified Prototypes . | . . . Parts Lost 6 | . . 6 Power 1 | . . 1 Propulsion 2 | . . 2 Utility 1 | . . 1 Weapon 2 | . . 2 Highest Loss Streak 6 | . . 6 To Critical Strikes 1 | . . 1 Average Backups 6 | 5 8 8 Power 2 | 1 3 3 Propulsion 2 | 2 2 2 Utility . | . 1 1 Weapon 1 | 1 2 2 Tool/Special . | . . . Unused Backups 5 | 1 . 4 Power 2 | . . 2 Propulsion 2 | . . 2 Utility 1 | 1 . . Weapon . | . . . Tool/Special . | . . . Average Slot Usage (%) 85 | . 100 64 Engine 9 | . 14 3 Leg 23 | . 28 17 Device 12 | . 14 11 Storage 14 | . 14 14 Energy Gun 16 | . 16 16 Special Weapon 6 | . 11 . Peak Build Rating 7 | 7 7 7 Average Rating 5 | 4 7 4 On Entrance 4 | . 7 7 Naked Turns . | . . . Heaviest Build 14 | 14 13 13 Greatest Support 20 | 20 20 20 Greatest Overweight (x) 4 | 4 . . Average Overweight (x) . | 1 . . Largest Inventory Capacity 8 | 8 8 8 Average Capacity 7 | 7 8 8 Most Carried 8 | 8 8 8 Average Carried 6 | 5 8 8 Final Capacity 8 | 8 8 8 Final Carried 8 | 8 8 8 Class Distribution -------------------- 100% | Mutant Dominant Class ---------------- Mutant | -10/Materials Mutant | -10/Mines Resources | -11 -10 -10 ----------- Run | Yrd Mat Min Matter Collected 290 | 290 . . Remotely . | . . . Salvage Created 186 | 186 . . Parts 15 | 15 . . Haulers Intercepted . | . . . Recyclers Shooed 1 | 1 . . Parts Field Recycled . | . . . Retrieved Matter . | . . . Parts Self-Destructed . | . . . Prevented . | . . . Kills | -11 -10 -10 ------- Run | Yrd Mat Min Combat Hostiles Destroyed . | . . . Classes Destroyed 3 | 3 . . Worker 1 | 1 . . Tunneler 3 | 3 . . Recycler 1 | 1 . . Best Kill Streak 3 | 3 . . Combat Bots Only . | . . . Max Kills in Single Turn 1 | 1 . . Gunslinging . | . . . Exploded . | . . . Melee . | . . . Uniques/NPCs Destroyed . | . . . Combat | -11 -10 -10 -------- Run | Yrd Mat Min Hostile Shots Fired 122 | . 15 107 Missed 37 | . 8 29 Hits 85 | . 7 78 Projectile 85 | . 7 78 Critical Strikes 2 | . . 2 Damage Taken 680 | . 55 625 Core 254 | . 16 238 Absorbed by Shields . | . . . Core Remaining (%) 100 | 100 . . Volleys Fired 22 | 14 8 . Largest 2 | 2 2 . Hottest 140 | 90 140 . Shots Fired 27 | 17 10 . Gun 20 | 17 3 . Cannon . | . . . Launcher . | . . . Special 7 | . 7 . Kinetic . | . . . Thermal 11 | 3 8 . Explosive . | . . . Electromagnetic 16 | 14 2 . Robot Hit Streak 5 | 4 5 . Robot Miss Streak 2 | 2 1 . Penetration Max . | . . . Secondary Targets . | . . . Shots Hit Robots 12 | 11 1 . Core Hits 6 | 6 . . Critical Kills . | . . . Critical Parts Destroyed . | . . . Critical Strikes . | . . . Melee Attacks . | . . . Impact . | . . . Slashing . | . . . Piercing . | . . . Sneak Attacks . | . . . Combat Hostiles . | . . . Follow-up Attacks . | . . . Damage Inflicted 173 | 163 10 . Guns 173 | 163 10 . Cannons . | . . . Explosions . | . . . Melee . | . . . Ramming . | . . . Kinetic . | . . . Thermal 24 | 24 . . Explosive . | . . . Electromagnetic 149 | 139 10 . Impact . | . . . Slashing . | . . . Piercing . | . . . Highest Corruption . | . . . Average Corruption . | . . . Corruption Purged . | . . . Corruption Blocked . | . . . Overload Shots . | . . . Overflow Damage . | . . . Projectiles . | . . . Explosions . | . . . Melee . | . . . Knockbacks . | . . . Impact . | . . . Kinetic . | . . . Secondary . | . . . Self-Inflicted Damage . | . . . Shots . | . . . Rammed . | . . . Targets Rammed . | . . . Kicked . | . . . Crushed . | . . . Highest Temperature 82 | 30 82 . Average Temperature 26 | 16 28 . Received Heat Transfer . | . . . Siege Activations . | . . . Martial Activations . | . . . Shielding Activations . | . . . Robots Disrupted . | . . . Combat Hostiles . | . . . Robots Corrupted . | . . . Combat Hostiles . | . . . Parts Fried 1 | 1 . . Impact Corruptions . | . . . Robots Melted . | . . . Combat Hostiles . | . . . Parts Melted . | . . . Heat Transferred 74 | 74 . . Parts Sabotaged . | . . . Parts Stolen . | . . . Parts Stripped . | . . . Power Chain Reactions . | . . . Alert | -11 -10 -10 ------- Run | Yrd Mat Min Maximum Alert Level . | . . . Low Security (%) 100 | 100 100 100 Level 1 . | . . . Level 2 . | . . . Level 3 . | . . . Level 4 . | . . . Level 5 . | . . . High Security . | . . . Max Security . | . . . Peak Influence 15 | 15 8 . Initial . | . . . Average 1 | 1 . . Influence Increases 35 | 25 10 . Destroy 0b10 Robot/NC 25 | 25 . . Successful Hack 7 | . 7 . Destroy Structure 3 | . 3 . Influence Decreases 35 | 25 10 . Time Decay 35 | 25 10 . Squads Dispatched . | . . . Investigation . | . . . Extermination . | . . . Reinforcement . | . . . Assault . | . . . Garrison . | . . . Intercept . | . . . Searches Triggered . | . . . Construction Impeded . | . . . Haulers Reinforced . | . . . Active Scanning Responses . | . . . Cargo Convoy Interrupts . | . . . Stealth | -11 -10 -10 --------- Run | Yrd Mat Min Distress Signals . | . . . Communications Jammed . | . . . Distress Signals . | . . . Times Spotted 6 | . 3 3 Peak Tracking Total 3 | . 3 3 Tactical Retreats . | . . . Traps | -11 -10 -10 ------- Run | Yrd Mat Min Traps Triggered . | . . . Indirectly . | . . . Trap Hack Attempts . | . . . Triggered . | . . . Disarmed . | . . . Reprogrammed . | . . . Reused . | . . . Traps Extracted . | . . . Installed . | . . . Triggered . | . . . Machines | -11 -10 -10 ---------- Run | Yrd Mat Min Machines Disabled . | . . . Max in Single Turn . | . . . Machines Repaired . | . . . Machines Dismantled . | . . . Machines Sabotaged . | . . . Overloaded Fab Kills . | . . . Hacking | -11 -10 -10 --------- Run | Yrd Mat Min Machines Accessed 2 | . 2 . Terminals 2 | . 2 . Fabricators . | . . . Repair Stations . | . . . Recycling Units . | . . . Scanalyzers . | . . . Garrison Access . | . . . Total Hacks 2 | . 2 . Successful 1 | . 1 . Failed 1 | . 1 . Catastrophic 1 | . 1 . Database Lockouts . | . . . Manual . | . . . Terminals 2 | . 2 . Fabricators . | . . . Repair Stations . | . . . Recycling Units . | . . . Scanalyzers . | . . . Garrison Access . | . . . Terminal Hacks 1 | . 1 . Branch Access Points 1 | . 1 . Fabricator Hacks . | . . . Repair Station Hacks . | . . . Recycling Unit Hacks . | . . . Scanalyzer . | . . . Garrison Access Hacks . | . . . Unauthorized Hacks . | . . . Terminals . | . . . Fabricators . | . . . Repair Stations . | . . . Recycling Units . | . . . Scanalyzers . | . . . Garrison Access . | . . . Data Cores Recovered . | . . . Used . | . . . Hacking Detections . | . . . Full Trace Events . | . . . Feedback Events . | . . . Feedback Blocked . | . . . Robot Schematics Acquired . | . . . Robots Built . | . . . Authchips . | . . . Time . | . . . Total Robot Build Rating . | . . . Part Schematics Acquired . | . . . Parts Built . | . . . Authchips . | . . . Time . | . . . Total Part Build Rating . | . . . Parts Repaired . | . . . Time . | . . . Parts Recycled . | . . . Recycled Matter . | . . . Retrieved Matter . | . . . Retrieved Components . | . . . Parts Scanalyzed . | . . . Part Schematics Acquired . | . . . Parts Damaged . | . . . Bothacking | -11 -10 -10 ------------ Run | Yrd Mat Min Used RIF Installer . | . . . Robots Hacked . | . . . Non-combat . | . . . Combat . | . . . Robot Hacks Applied . | . . . Relay Couplers Released . | . . . Fabnet Peak Effective % . | . . . Robots Rewired . | . . . Allies Hacked . | . . . Hacks Repelled . | . . . Allies | -11 -10 -10 -------- Run | Yrd Mat Min Total Allies . | . . . Largest Group . | . . . Highest-Rated Group . | . . . Highest-Rated Ally . | . . . Total Orders . | . . . Ally Attacks . | . . . Total Damage . | . . . Kills . | . . . Allies Corrupted . | . . . Allies Melted . | . . . Intel | -11 -10 -10 ------- Run | Yrd Mat Min Active Infowar (turns) 349 | 123 146 80 Seismic 349 | 123 146 80 Robot Analysis Total . | . . . Derelict Logs Recovered . | . . . Drone Launches . | . . . Drone Recoveries . | . . . Exploration | -11 -10 -10 ------------- Run | Yrd Mat Min Turns Passed 459 | 213 146 100 Spaces Moved 198 | 99 86 13 Core 60 | 60 . . Treads . | . . . Legs 138 | 39 86 13 Wheels . | . . . Hover . | . . . Flight . | . . . Fastest Speed 50 | 50 120 120 Average Speed 137 | 155 120 120 Slowest Speed 250 | 250 120 120 Overloaded Moves . | . . . Propulsion Burnouts . | . . . Robots Hopped . | . . . Potential Cave-ins . | . . . Cave-ins Triggered . | . . . Exploration Rate (%) 9 | 3 18 6 Regions Visited 2 Branch Regions 1 Pre-discovered Areas . | . . . Known Exits Taken 1 | . 1 . Unknown Exits Taken 1 | 1 . . Scrap Searched . | . . . Spaces Dug 5 | . 5 . Terrain Destroyed 7 | . 7 . Melee . | . . . Projectile 7 | . 7 . AOE . | . . . Terrain Rammed . | . . . Walls Destroyed . | . . . Machines Disabled . | . . . Actions | -11 -10 -10 --------- Run | Yrd Mat Min Total 340 | 140 104 96 Wait 91 | . 9 82 Move 196 | 98 85 13 Hop . | . . . Pick Up 13 | 13 . . Fast Attach 6 | 6 . . Attach 3 | 3 . . Detach 2 | 2 . . Swap 3 | . 2 1 Drop 4 | 4 . . Fire 22 | 14 8 . Melee . | . . . Ram . | . . . Kick . | . . . Crush . | . . . Escape Stasis . | . . . Rewire . | . . . Trap . | . . . Miscellaneous . | . . . Route ------- -11/Scrapyard -10/Materials -10/Mines History --------- Turn | Location | Event 5 | -11/Scrapyard | Discovered new exit (range 15) 214 | -11/Scrapyard | Entered Materials 316 | -10/Materials | Build established: Mutant 341 | -10/Materials | Identified exit to Mines 360 | -10/Materials | Entered Mines 371 | -10/Mines | Received a Rocket Launcher from a helpful Derelict 440 | -10/Mines | Core integrity fell below 50% 453 | -10/Mines | Core integrity fell below 20% 460 | -10/Mines | Destroyed by S-10 Pest with Light Assault Rifle Last Messages --------------- the depths." 00367_ GD-MOC(g): "Pshh... whatever." 00368_ GD-MOC(g): "Everyone knows a good old rocket launcher goes a long way." 00369_ GD-MOC(g): "Need to get rid of a swarm? Done. Need a big hole in the wall? Done." 00370_ GD-MOC(g): "Need a small hole in the wall? Leave that to the mining laser wimps, I say!" 00371_ GD-MOC(g): "Would you like a rocket launcher? I know I would if I were you, so I'm going to lend you mine." 00371_ GD-MOC(g) slips back into the shadows. 00383_ S-10 Pest destroyed. 00389_ Lgt. Ion Engine destroyed. 00394_ EM Pulse Gun destroyed. 00411_ Critical hit (Destroy). 00411_ Aluminum Leg destroyed. 00440_ Seismic Detector destroyed. 00447_ Med. Laser destroyed. Map ----- +----------------------------------------------------+ | ???????????????????????????? | | ???????????????????????????? | | ???????????????????????????? | | ???????????????????????????? | | ????????????????#??????????? | | ??????????????? ???????????? | | ?????????????? ????????????? | | ?????????#### ?????????????? | | ????????? $????? ???????? | | ?????#### #??? ?????????? | | ????## ## ???????????? | | ????# ??????????????? | | ????# #????????????????? | | ????# #????????????????? | | ????## #????????????????? | | ?????## #????????????????? | | ?????##] #????????????????? | | ????## #????????????????? | | ???## ##????????????????? | | ???# ##?????????????????? | | ???# ##??????????????????? | | ???# ##???????????????????? | | ???# #????????????????????? | | ???# =##???????????????????? | | ??##s%s#???????????????????? | | ??#@ #???????????????????? | | ??# #???????????????????? | | ??## #???????????????????? | | ???## #???????????????????? | | ????? #???????????????????? | | ????? #???????????????????? | | ????? #???????????????????? | | ????? #???????????????????? | | ????? #???????????????????? | | ????? #???????????????????? | | ????? #???????????????????? | | ?????? #???????????????????? | | ?????? #???????????????????? | | ?????? #???????????????????? | | ?????? ????????????????????? | | ???????????????????????????? | | ???????????????????????????? | | ???????????????????????????? | | ???????????????????????????? | | ???????????????????????????? | | ???????????????????????????? | | ???????????????????????????? | | ???????????????????????????? | | ???????????????????????????? | | ???????????????????????????? | +----------------------------------------------------+ Best States ------------- Heat Dissipation 25 Energy Generation 10 Energy Capacity 250 Matter Stores 300 Matter Capacity 300 Sight Range 16 Terrain Scan Density 10 Evasion (%) 55 Item Schematics ----------------- None Robot Schematics ------------------ None Fabricated ------------ Nothing Repaired ---------- Nothing Alien Tech Used ----------------- None Achievements -------------- None Challenges ------------ None Game ------ Seed ConcussiveTripodInitializer Manual? 1 Play Time 00:06:10 Cumulative 12.5 hours Start 2025.06.03 @ 15:11:47 End 2025.06.03 @ 15:17:29 Sessions 1 Manual Loads 0 Difficulty Rogue Special Mode None Game No. 17 Rogue 17 Adventurer 0 Explorer 0 Win Type - Total 0 Types 0/0/0/0/0/0/0/0/0/0 Lore% 7 Gallery% 16 Achievement% 14 Wizard Run 0 Options --------- Layout 1 ASCII 0 Keyboard 1 Movement Vi Keybinds 0 Fullscreen 2 Font 24/Smallcaps Map View 50x35 Zoom Use 6% Tactical HUD 1 Map Filters NONE Filters NONE Steam 1 RUN: 217c6167-90b4-42bd-bd70-494ec1b2c58b